[Event "Live Chess"]
[Site "Chess.com"]
[Date "2024.06.02"]
[Round "-"]
[White "best137"]
[Black "Crowded_House"]
[Result "1-0"]
[WhiteElo "1535"]
[BlackElo "1636"]
[TimeControl "300"]
[EndTime "8:51:01 PDT"]
[Termination "best137 won by checkmate"]

1. c4 {[%clk 0:04:57.7]} 1... e6 {[%clk 0:04:59.5]} 2. d4 {[%clk 0:04:56.4]}
2... d5 {[%clk 0:04:58.5]} 3. Nc3 {[%clk 0:04:55.5]} 3... c6 {[%clk 0:04:57.1]}
4. Nf3 {[%clk 0:04:54.6]} 4... Nf6 {[%clk 0:04:55]} 5. Bg5 {[%clk 0:04:52.9]}
5... Be7 {[%clk 0:04:51]} 6. e3 {[%clk 0:04:46.1]} 6... O-O {[%clk 0:04:48.7]}
7. cxd5 {[%clk 0:04:37.7]} 7... exd5 {[%clk 0:04:43.6]} 8. Be2 {[%clk
0:04:36.7]} 8... Nbd7 {[%clk 0:04:38.5]} 9. O-O {[%clk 0:04:34.6]} 9... Nb6
{[%clk 0:04:35.8]} 10. h4 {[%clk 0:04:24]} 10... Bf5 {[%clk 0:04:29.3]} 11. Ne5
{[%clk 0:04:06.8]} 11... h6 {[%clk 0:04:19.8]} 12. Bxf6 {[%clk 0:03:50.9]} 12...
Bxf6 {[%clk 0:04:18]} 13. g4 {[%clk 0:03:49.6]} 13... Bxe5 {[%clk 0:04:07.6]}
14. dxe5 {[%clk 0:03:38.8]} 14... Be6 {[%clk 0:04:01.2]} 15. h5 {[%clk
0:03:25.4]} 15... f6 {[%clk 0:03:53.8]} 16. exf6 {[%clk 0:03:14.1]} 16... Qxf6
{[%clk 0:03:47.8]} 17. f4 {[%clk 0:03:05.8]} 17... Nc4 {[%clk 0:03:13.4]} 18.
Bxc4 {[%clk 0:02:55.7]} 18... dxc4 {[%clk 0:03:12.4]} 19. Ne4 {[%clk 0:02:53.3]}
19... Qxb2 {[%clk 0:03:05.9]} 20. g5 {[%clk 0:02:26.7]} 20... hxg5 {[%clk
0:02:56.2]} 21. fxg5 {[%clk 0:02:14.1]} 21... Bd5 {[%clk 0:02:49.5]} 22. Qg4
{[%clk 0:01:54.6]} 22... Bxe4 {[%clk 0:02:41]} 23. Qxe4 {[%clk 0:01:49.6]} 23...
Rxf1+ {[%clk 0:02:39.6]} 24. Rxf1 {[%clk 0:01:47]} 24... Qe2 {[%clk 0:02:30.2]}
25. h6 {[%clk 0:01:09.1]} 25... gxh6 {[%clk 0:02:00.2]} 26. Qe6+ {[%clk
0:00:53.5]} 26... Kh8 {[%clk 0:01:45.5]} 27. Qxh6+ {[%clk 0:00:43.5]} 27... Kg8
{[%clk 0:01:44]} 28. Qe6+ {[%clk 0:00:14.6]} 28... Kh8 {[%clk 0:01:38.7]} 29.
Rf2 {[%clk 0:00:09.9]} 29... Qe1+ {[%clk 0:01:34.3]} 30. Kg2 {[%clk 0:00:08.5]}
30... Rg8 {[%clk 0:01:31.4]} 31. Qh6# {[%clk 0:00:05.3]} 1-0

[Event "Live Chess"]
[Site "Chess.com"]
[Date "2024.06.02"]
[Round "-"]
[White "ProfPoisson"]
[Black "bonantagulo"]
[Result "0-1"]
[WhiteElo "1352"]
[BlackElo "2233"]
[TimeControl "300"]
[EndTime "8:51:03 PDT"]
[Termination "bonantagulo won on time"]

1. e4 {[%clk 0:04:56.8]} 1... e6 {[%clk 0:04:58.7]} 2. d4 {[%clk 0:04:54.2]}
2... d5 {[%clk 0:04:58.6]} 3. e5 {[%clk 0:04:52.1]} 3... c5 {[%clk 0:04:57.9]}
4. c3 {[%clk 0:04:50.4]} 4... Nc6 {[%clk 0:04:57.8]} 5. Nf3 {[%clk 0:04:47.5]}
5... Qb6 {[%clk 0:04:55.3]} 6. Bd3 {[%clk 0:04:45.6]} 6... cxd4 {[%clk
0:04:54.4]} 7. O-O {[%clk 0:04:43.3]} 7... Bd7 {[%clk 0:04:53.9]} 8. Re1 {[%clk
0:04:34.8]} 8... Nge7 {[%clk 0:04:52.6]} 9. h4 {[%clk 0:04:31.8]} 9... h5 {[%clk
0:04:20.5]} 10. Nbd2 {[%clk 0:04:28.9]} 10... dxc3 {[%clk 0:04:19.3]} 11. bxc3
{[%clk 0:04:26.5]} 11... Qc7 {[%clk 0:04:09.1]} 12. Nb3 {[%clk 0:04:24.1]} 12...
g6 {[%clk 0:03:59.6]} 13. Ba3 {[%clk 0:04:21.4]} 13... Bg7 {[%clk 0:03:58.2]}
14. Bxe7 {[%clk 0:04:18.6]} 14... Nxe7 {[%clk 0:03:54.3]} 15. Rc1 {[%clk
0:04:08.7]} 15... O-O {[%clk 0:03:48.5]} 16. c4 {[%clk 0:04:06.9]} 16... dxc4
{[%clk 0:03:43.8]} 17. Rxc4 {[%clk 0:04:04.2]} 17... Bc6 {[%clk 0:03:14.6]} 18.
Be4 {[%clk 0:03:43.1]} 18... Qb6 {[%clk 0:03:09.2]} 19. Bxc6 {[%clk 0:03:30.7]}
19... Nxc6 {[%clk 0:03:09.1]} 20. Qe2 {[%clk 0:03:14.5]} 20... Rac8 {[%clk
0:02:58.5]} 21. Rec1 {[%clk 0:03:11.1]} 21... Ne7 {[%clk 0:02:45.7]} 22. Rxc8
{[%clk 0:03:07.5]} 22... Rxc8 {[%clk 0:02:45.6]} 23. Rxc8+ {[%clk 0:03:04.9]}
23... Nxc8 {[%clk 0:02:45.5]} 24. Ng5 {[%clk 0:02:58.6]} 24... Qc7 {[%clk
0:02:32.7]} 25. Qb5 {[%clk 0:02:49.9]} 25... Bxe5 {[%clk 0:02:10.5]} 26. Qe8+
{[%clk 0:02:45.9]} 26... Kg7 {[%clk 0:02:09.7]} 27. g3 {[%clk 0:02:32]} 27...
Nb6 {[%clk 0:01:36.7]} 28. Nd2 {[%clk 0:02:29.2]} 28... Qd7 {[%clk 0:01:26.5]}
29. Qxd7 {[%clk 0:02:08.7]} 29... Nxd7 {[%clk 0:01:26.4]} 30. Ndf3 {[%clk
0:02:06.5]} 30... Bf6 {[%clk 0:01:21.9]} 31. Ne4 {[%clk 0:02:01.1]} 31... b5
{[%clk 0:01:15.1]} 32. Nd6 {[%clk 0:01:58.4]} 32... b4 {[%clk 0:01:11.2]} 33.
Kf1 {[%clk 0:01:55.2]} 33... Be7 {[%clk 0:01:02.2]} 34. Nb5 {[%clk 0:01:50]}
34... a5 {[%clk 0:00:57.5]} 35. Ke2 {[%clk 0:01:47.9]} 35... Nc5 {[%clk
0:00:48.3]} 36. Nfd4 {[%clk 0:01:42.6]} 36... Bf6 {[%clk 0:00:32.8]} 37. Ke3
{[%clk 0:01:40.7]} 37... a4 {[%clk 0:00:31.3]} 38. f3 {[%clk 0:01:33.1]} 38...
b3 {[%clk 0:00:30.6]} 39. axb3 {[%clk 0:01:30]} 39... axb3 {[%clk 0:00:29.1]}
40. Kd2 {[%clk 0:01:21.5]} 40... Bxd4 {[%clk 0:00:26.7]} 41. Nxd4 {[%clk
0:01:18.9]} 41... Kf6 {[%clk 0:00:26.6]} 42. Kc3 {[%clk 0:01:16.4]} 42... Ke5
{[%clk 0:00:25.9]} 43. Nc6+ {[%clk 0:01:12.2]} 43... Kd5 {[%clk 0:00:24]} 44.
Nd8 {[%clk 0:01:09.3]} 44... f6 {[%clk 0:00:23.2]} 45. Nf7 {[%clk 0:01:07.7]}
45... e5 {[%clk 0:00:22.1]} 46. g4 {[%clk 0:01:05]} 46... e4 {[%clk 0:00:18.2]}
47. fxe4+ {[%clk 0:01:03.6]} 47... Kxe4 {[%clk 0:00:18.1]} 48. gxh5 {[%clk
0:01:01.9]} 48... gxh5 {[%clk 0:00:18]} 49. Nd6+ {[%clk 0:00:59.8]} 49... Kf4
{[%clk 0:00:16.4]} 50. Nc4 {[%clk 0:00:56.9]} 50... Kg4 {[%clk 0:00:15.7]} 51.
Ne3+ {[%clk 0:00:55.1]} 51... Kxh4 {[%clk 0:00:14.3]} 52. Ng2+ {[%clk
0:00:53.3]} 52... Kg3 {[%clk 0:00:13.7]} 53. Ne3 {[%clk 0:00:49.8]} 53... h4
{[%clk 0:00:13.6]} 54. Nf1+ {[%clk 0:00:48.4]} 54... Kg2 {[%clk 0:00:13]} 55.
Ne3+ {[%clk 0:00:46.2]} 55... Kf3 {[%clk 0:00:12.9]} 56. Nf1 {[%clk 0:00:44.7]}
56... h3 {[%clk 0:00:12.8]} 57. Kb2 {[%clk 0:00:40.9]} 57... Kg2 {[%clk
0:00:12.7]} 58. Ne3+ {[%clk 0:00:39.3]} 58... Kg3 {[%clk 0:00:11.3]} 59. Nf1+
{[%clk 0:00:37.8]} 59... Kf2 {[%clk 0:00:11.2]} 60. Nh2 {[%clk 0:00:36]} 60...
Kg1 {[%clk 0:00:10.7]} 61. Ng4 {[%clk 0:00:33.8]} 61... Ne4 {[%clk 0:00:10]} 62.
Kxb3 {[%clk 0:00:31.5]} 62... Nf2 {[%clk 0:00:09.9]} 63. Nh2 {[%clk 0:00:14.3]}
63... Kxh2 {[%clk 0:00:09.1]} 64. Kc3 {[%clk 0:00:14]} 64... Kg2 {[%clk
0:00:09]} 65. Kd4 {[%clk 0:00:11.4]} 65... h2 {[%clk 0:00:08.9]} 66. Kd5 {[%clk
0:00:06.5]} 66... h1=Q {[%clk 0:00:08.8]} 67. Ke6 {[%clk 0:00:05.8]} 67... Qh3+
{[%clk 0:00:08.7]} 68. Kxf6 {[%clk 0:00:05.1]} 68... Qf3+ {[%clk 0:00:08.6]} 69.
Ke6 {[%clk 0:00:03.4]} 69... Kg3 {[%clk 0:00:08.5]} 70. Kd7 {[%clk 0:00:03]}
70... Qf4 {[%clk 0:00:08.4]} 71. Kc6 {[%clk 0:00:02.4]} 71... Kg4 {[%clk
0:00:08.3]} 72. Kb5 {[%clk 0:00:00.1]} 72... Qf5+ {[%clk 0:00:08.2]} 0-1

[Event "Live Chess"]
[Site "Chess.com"]
[Date "2024.06.02"]
[Round "-"]
[White "mychess51"]
[Black "BishopofWells"]
[Result "0-1"]
[WhiteElo "1716"]
[BlackElo "1579"]
[TimeControl "300"]
[EndTime "8:51:05 PDT"]
[Termination "BishopofWells won by resignation"]

1. d4 {[%clk 0:04:56.3]} 1... d5 {[%clk 0:04:56.8]} 2. Nf3 {[%clk 0:04:56.2]}
2... Bg4 {[%clk 0:04:51.8]} 3. g3 {[%clk 0:04:56.1]} 3... Bxf3 {[%clk
0:04:50.3]} 4. Bg2 {[%clk 0:04:56]} 4... Bxg2 {[%clk 0:04:48.1]} 5. c4 {[%clk
0:04:55.8]} 5... Bxh1 {[%clk 0:04:45.9]} 6. cxd5 {[%clk 0:04:43.2]} 6... Bxd5
{[%clk 0:04:42.5]} 7. Nc3 {[%clk 0:04:43.1]} 7... Nf6 {[%clk 0:04:38.3]} 8. Qa4+
{[%clk 0:04:39.6]} 8... Bc6 {[%clk 0:04:34.3]} 9. Qb5 {[%clk 0:04:39.5]} 9...
Bxb5 {[%clk 0:04:32.4]} 10. Nd5 {[%clk 0:04:36.8]} 10... Nxd5 {[%clk 0:04:30.1]}
11. a3 {[%clk 0:04:32.9]} 0-1

[Event "Live Chess"]
[Site "Chess.com"]
[Date "2024.06.02"]
[Round "-"]
[White "McFim"]
[Black "willc-h99"]
[Result "0-1"]
[WhiteElo "1819"]
[BlackElo "2546"]
[TimeControl "300"]
[EndTime "8:51:08 PDT"]
[Termination "willc-h99 won by resignation"]

1. e4 {[%clk 0:04:58.3]} 1... d5 {[%clk 0:04:59.1]} 2. exd5 {[%clk 0:04:57]}
2... Qxd5 {[%clk 0:04:59]} 3. Nc3 {[%clk 0:04:55.8]} 3... Qd6 {[%clk 0:04:58.4]}
4. Bc4 {[%clk 0:04:53.9]} 4... Nf6 {[%clk 0:04:56.9]} 5. d4 {[%clk 0:04:52.5]}
5... a6 {[%clk 0:04:56.1]} 6. a3 {[%clk 0:04:50.8]} 6... b5 {[%clk 0:04:55.1]}
7. Bb3 {[%clk 0:04:49.5]} 7... Bb7 {[%clk 0:04:54.4]} 8. f3 {[%clk 0:04:47.9]}
8... Nbd7 {[%clk 0:04:46.5]} 9. Nge2 {[%clk 0:04:46.4]} 9... e6 {[%clk
0:04:40.8]} 10. Be3 {[%clk 0:04:44.7]} 10... c5 {[%clk 0:04:38.1]} 11. dxc5
{[%clk 0:04:39.7]} 11... Qxd1+ {[%clk 0:04:37]} 12. Rxd1 {[%clk 0:04:36.7]}
12... Bxc5 {[%clk 0:04:36.9]} 13. Bxc5 {[%clk 0:04:34.6]} 13... Nxc5 {[%clk
0:04:35.9]} 14. Ba2 {[%clk 0:04:33]} 14... Ke7 {[%clk 0:04:35.3]} 15. O-O {[%clk
0:04:29]} 15... Rhd8 {[%clk 0:04:34.3]} 16. Rxd8 {[%clk 0:04:25.2]} 16... Rxd8
{[%clk 0:04:33.2]} 17. Rd1 {[%clk 0:04:24.7]} 17... Rxd1+ {[%clk 0:04:30.1]} 18.
Nxd1 {[%clk 0:04:24.6]} 18... Nd5 {[%clk 0:04:22.8]} 19. b4 {[%clk 0:04:19.5]}
19... Na4 {[%clk 0:04:19.6]} 20. Kf2 {[%clk 0:04:06.5]} 20... Ndb6 {[%clk
0:04:11.8]} 21. Bb3 {[%clk 0:04:02.2]} 21... Kd6 {[%clk 0:04:08.3]} 22. Ke3
{[%clk 0:03:58.7]} 22... Bd5 {[%clk 0:04:06.7]} 23. Bxd5 {[%clk 0:03:53.8]}
23... Kxd5 {[%clk 0:04:03]} 24. Kd3 {[%clk 0:03:51]} 24... Nc4 {[%clk
0:03:58.7]} 25. Nec3+ {[%clk 0:03:39.4]} 25... Nxc3 {[%clk 0:03:54.9]} 26. Nxc3+
{[%clk 0:03:37.2]} 26... Ke5 {[%clk 0:03:54.1]} 27. Nb1 {[%clk 0:03:35.6]} 27...
Kf4 {[%clk 0:03:45.6]} 28. Ke2 {[%clk 0:03:29.2]} 28... f5 {[%clk 0:03:43.2]}
29. g3+ {[%clk 0:03:27.6]} 29... Ke5 {[%clk 0:03:42.6]} 30. Kd3 {[%clk
0:03:22.8]} 30... Kd5 {[%clk 0:03:41.6]} 31. Nc3+ {[%clk 0:03:14.2]} 31... Kc6
{[%clk 0:03:40.2]} 32. Nb1 {[%clk 0:03:12.5]} 32... e5 {[%clk 0:03:39.1]} 33. a4
{[%clk 0:03:07.1]} 33... Nb2+ {[%clk 0:03:37.6]} 34. Kd2 {[%clk 0:02:58.4]}
34... Nxa4 {[%clk 0:03:37.5]} 35. c3 {[%clk 0:02:54.8]} 35... Nb2 {[%clk
0:03:35.9]} 36. Na3 {[%clk 0:02:50.7]} 36... Nc4+ {[%clk 0:03:34.6]} 37. Nxc4
{[%clk 0:02:48.8]} 37... bxc4 {[%clk 0:03:34.5]} 38. Ke3 {[%clk 0:02:46.2]}
38... Kd5 {[%clk 0:03:31.4]} 39. h4 {[%clk 0:02:42.2]} 39... g6 {[%clk
0:03:29.7]} 40. Ke2 {[%clk 0:02:16.5]} 40... h6 {[%clk 0:03:25.7]} 41. Ke3
{[%clk 0:02:14.1]} 41... g5 {[%clk 0:03:20.9]} 42. hxg5 {[%clk 0:02:10.6]} 42...
hxg5 {[%clk 0:03:19.6]} 43. Ke2 {[%clk 0:01:43.3]} 43... f4 {[%clk 0:03:16.4]}
44. gxf4 {[%clk 0:01:36.5]} 44... gxf4 {[%clk 0:03:16.3]} 45. Kd2 {[%clk
0:01:34]} 45... e4 {[%clk 0:03:15.5]} 46. fxe4+ {[%clk 0:01:32.1]} 46... Kxe4
{[%clk 0:03:15.4]} 47. Ke2 {[%clk 0:01:31.7]} 47... f3+ {[%clk 0:03:14.5]} 0-1

[Event "Live Chess"]
[Site "Chess.com"]
[Date "2024.06.02"]
[Round "-"]
[White "Queensandpawns"]
[Black "JohanKjeldahl"]
[Result "1-0"]
[WhiteElo "2242"]
[BlackElo "1830"]
[TimeControl "300"]
[EndTime "8:51:09 PDT"]
[Termination "Queensandpawns won by resignation"]

1. e4 {[%clk 0:04:59.4]} 1... c5 {[%clk 0:04:57.9]} 2. d4 {[%clk 0:04:58.3]}
2... cxd4 {[%clk 0:04:55.9]} 3. c3 {[%clk 0:04:58.2]} 3... dxc3 {[%clk 0:04:55]}
4. Bc4 {[%clk 0:04:58.1]} 4... e6 {[%clk 0:04:52.3]} 5. Nf3 {[%clk 0:04:56.3]}
5... Nc6 {[%clk 0:04:49.1]} 6. Nxc3 {[%clk 0:04:55.4]} 6... Bc5 {[%clk
0:04:48.1]} 7. O-O {[%clk 0:04:54.8]} 7... Nf6 {[%clk 0:04:47.2]} 8. e5 {[%clk
0:04:54]} 8... Ng4 {[%clk 0:04:43.2]} 9. Ne4 {[%clk 0:04:53.1]} 9... Be7 {[%clk
0:04:37.5]} 10. Bf4 {[%clk 0:04:43.4]} 10... f5 {[%clk 0:04:28.7]} 11. exf6
{[%clk 0:04:37.9]} 11... Nxf6 {[%clk 0:04:27.3]} 12. Nd6+ {[%clk 0:04:37.5]}
12... Bxd6 {[%clk 0:04:24.8]} 13. Bxd6 {[%clk 0:04:37.4]} 13... b6 {[%clk
0:04:16.9]} 14. Re1 {[%clk 0:04:32.3]} 14... Kf7 {[%clk 0:04:15.3]} 15. Ng5+
{[%clk 0:04:30.9]} 15... Kg6 {[%clk 0:04:10]} 16. h4 {[%clk 0:04:19.9]} 16...
Bb7 {[%clk 0:03:47.3]} 17. Qd3+ {[%clk 0:04:18.3]} 17... Kh6 {[%clk 0:03:44.2]}
18. Nf7+ {[%clk 0:04:16.8]} 18... Kh5 {[%clk 0:03:40.8]} 19. Nxd8 {[%clk
0:04:07.4]} 19... Raxd8 {[%clk 0:03:37.6]} 20. Qf3+ {[%clk 0:04:05]} 1-0

[Event "Live Chess"]
[Site "Chess.com"]
[Date "2024.06.02"]
[Round "-"]
[White "joellloyd"]
[Black "RichardABates"]
[Result "0-1"]
[WhiteElo "1854"]
[BlackElo "2365"]
[TimeControl "300"]
[EndTime "8:51:11 PDT"]
[Termination "RichardABates won on time"]

1. e4 {[%clk 0:04:59.5]} 1... c5 {[%clk 0:04:55.4]} 2. d4 {[%clk 0:04:58.7]}
2... cxd4 {[%clk 0:04:53.9]} 3. c3 {[%clk 0:04:58]} 3... Nf6 {[%clk 0:04:52.4]}
4. e5 {[%clk 0:04:57]} 4... Nd5 {[%clk 0:04:51.4]} 5. Nf3 {[%clk 0:04:56.7]}
5... e6 {[%clk 0:04:49.6]} 6. cxd4 {[%clk 0:04:50.1]} 6... d6 {[%clk 0:04:48]}
7. a3 {[%clk 0:04:47.2]} 7... dxe5 {[%clk 0:04:37.4]} 8. dxe5 {[%clk 0:04:44.2]}
8... Nd7 {[%clk 0:04:35.8]} 9. Bc4 {[%clk 0:04:32.6]} 9... N7b6 {[%clk
0:04:20.7]} 10. Bd3 {[%clk 0:04:19.3]} 10... Bd7 {[%clk 0:04:18.9]} 11. O-O
{[%clk 0:04:16.6]} 11... Be7 {[%clk 0:04:15.3]} 12. b4 {[%clk 0:03:53.8]} 12...
Rc8 {[%clk 0:04:09.2]} 13. Bb2 {[%clk 0:03:35.1]} 13... O-O {[%clk 0:04:05.7]}
14. Nbd2 {[%clk 0:03:13.4]} 14... Ba4 {[%clk 0:03:55.2]} 15. Qb1 {[%clk
0:02:57.9]} 15... h6 {[%clk 0:03:51.1]} 16. Rc1 {[%clk 0:02:44.8]} 16... Nf4
{[%clk 0:03:46.7]} 17. Bf1 {[%clk 0:02:32.1]} 17... Qd5 {[%clk 0:03:27.6]} 18.
g3 {[%clk 0:02:13.5]} 18... Ng6 {[%clk 0:03:13.1]} 19. Bg2 {[%clk 0:01:44]}
19... Rxc1+ {[%clk 0:02:57.5]} 20. Qxc1 {[%clk 0:01:41.9]} 20... Rc8 {[%clk
0:02:54.9]} 21. Qe1 {[%clk 0:01:33.2]} 21... Qd3 {[%clk 0:02:49.6]} 22. Rc1
{[%clk 0:01:25.5]} 22... Bg5 {[%clk 0:02:36.4]} 23. Rxc8+ {[%clk 0:01:20.7]}
23... Nxc8 {[%clk 0:02:34.5]} 24. Nxg5 {[%clk 0:01:04.2]} 24... hxg5 {[%clk
0:02:31.7]} 25. Bxb7 {[%clk 0:00:56.2]} 25... Nce7 {[%clk 0:02:29.9]} 26. Be4
{[%clk 0:00:51.5]} 26... Qd7 {[%clk 0:02:22.8]} 27. Nc4 {[%clk 0:00:41.2]} 27...
Bc6 {[%clk 0:02:15.5]} 28. Bxc6 {[%clk 0:00:36.1]} 28... Qxc6 {[%clk 0:02:12.3]}
29. Nd6 {[%clk 0:00:31.7]} 29... Qc2 {[%clk 0:02:05.4]} 30. Qc1 {[%clk
0:00:27.2]} 30... Qb3 {[%clk 0:01:58.7]} 31. Qc7 {[%clk 0:00:17.3]} 31... Qxb2
{[%clk 0:01:53.6]} 32. Qd8+ {[%clk 0:00:13.5]} 32... Kh7 {[%clk 0:01:51.1]} 33.
Nxf7 {[%clk 0:00:10.4]} 33... Qb1+ {[%clk 0:01:44.8]} 34. Kg2 {[%clk 0:00:08.9]}
34... Qe4+ {[%clk 0:01:42.2]} 35. Kg1 {[%clk 0:00:01.4]} 35... Qf5 {[%clk
0:01:40.5]} 0-1

[Event "Live Chess"]
[Site "Chess.com"]
[Date "2024.06.02"]
[Round "-"]
[White "NottheBishopSacrifice"]
[Black "CarmelJane"]
[Result "1-0"]
[WhiteElo "2341"]
[BlackElo "2040"]
[TimeControl "300"]
[EndTime "8:51:15 PDT"]
[Termination "NottheBishopSacrifice won by resignation"]

1. d4 {[%clk 0:04:58.3]} 1... g6 {[%clk 0:04:57.9]} 2. Nf3 {[%clk 0:04:56.6]}
2... Bg7 {[%clk 0:04:57.8]} 3. e4 {[%clk 0:04:55.2]} 3... c5 {[%clk 0:04:54.2]}
4. c3 {[%clk 0:04:53]} 4... cxd4 {[%clk 0:04:54.1]} 5. cxd4 {[%clk 0:04:50.3]}
5... d5 {[%clk 0:04:53.1]} 6. e5 {[%clk 0:04:48.9]} 6... Bg4 {[%clk 0:04:50.7]}
7. Nc3 {[%clk 0:04:47.6]} 7... a6 {[%clk 0:04:47.2]} 8. Be2 {[%clk 0:04:45.1]}
8... Nc6 {[%clk 0:04:46]} 9. O-O {[%clk 0:04:39.6]} 9... Bxf3 {[%clk 0:04:39.5]}
10. Bxf3 {[%clk 0:04:39.5]} 10... e6 {[%clk 0:04:38.7]} 11. Be3 {[%clk 0:04:38]}
11... Nh6 {[%clk 0:04:36.3]} 12. Be2 {[%clk 0:04:36.3]} 12... Nf5 {[%clk
0:04:34.1]} 13. Qd3 {[%clk 0:04:34.6]} 13... O-O {[%clk 0:04:27]} 14. Bg4 {[%clk
0:04:30.8]} 14... Nxe3 {[%clk 0:04:18.2]} 15. fxe3 {[%clk 0:04:28.4]} 15... Qg5
{[%clk 0:04:13.2]} 16. Bh3 {[%clk 0:04:26.2]} 16... Nb4 {[%clk 0:04:01.9]} 17.
Qd2 {[%clk 0:04:23.3]} 17... Rac8 {[%clk 0:03:58.9]} 18. a3 {[%clk 0:04:17.3]}
18... Nc6 {[%clk 0:03:56.2]} 19. Rf4 {[%clk 0:04:16.1]} 19... Qe7 {[%clk
0:03:52.9]} 20. Raf1 {[%clk 0:04:13.4]} 20... Qd8 {[%clk 0:03:44.7]} 21. Qf2
{[%clk 0:04:10.6]} 21... Rc7 {[%clk 0:03:42.2]} 22. Qf3 {[%clk 0:04:06.9]} 22...
Na5 {[%clk 0:03:40.4]} 23. Qf2 {[%clk 0:04:04.7]} 23... Qe7 {[%clk 0:03:34.9]}
24. Na4 {[%clk 0:03:52.5]} 24... Nc4 {[%clk 0:03:29.9]} 25. Nc5 {[%clk
0:03:48.3]} 25... Rxc5 {[%clk 0:03:15.9]} 26. dxc5 {[%clk 0:03:46.8]} 26... Bxe5
{[%clk 0:03:15]} 27. b4 {[%clk 0:03:44.2]} 27... Bxf4 {[%clk 0:03:13]} 28. exf4
{[%clk 0:03:43]} 28... Qf6 {[%clk 0:03:04]} 29. Qg3 {[%clk 0:03:36.6]} 29... Nd2
{[%clk 0:02:58.9]} 30. Re1 {[%clk 0:03:33.5]} 30... Ne4 {[%clk 0:02:58]} 31. Qe3
{[%clk 0:03:32.5]} 31... Qb2 {[%clk 0:02:53.9]} 32. g3 {[%clk 0:03:30.1]} 32...
Qd2 {[%clk 0:02:41.7]} 33. Bg2 {[%clk 0:03:27.9]} 33... Qxe3+ {[%clk 0:02:39.3]}
34. Rxe3 {[%clk 0:03:27.8]} 34... Nc3 {[%clk 0:02:37.5]} 35. Rxc3 {[%clk
0:03:26.1]} 35... d4 {[%clk 0:02:36.8]} 1-0

[Event "Live Chess"]
[Site "Chess.com"]
[Date "2024.06.02"]
[Round "-"]
[White "Hoogleboogle"]
[Black "Purple1szed"]
[Result "0-1"]
[WhiteElo "1194"]
[BlackElo "1998"]
[TimeControl "300"]
[EndTime "8:51:24 PDT"]
[Termination "Purple1szed won by resignation"]

1. d4 {[%clk 0:04:55.3]} 1... d5 {[%clk 0:04:59.1]} 2. c4 {[%clk 0:04:51.7]}
2... c6 {[%clk 0:04:58.6]} 3. Nc3 {[%clk 0:04:50.7]} 3... Nf6 {[%clk 0:04:57.8]}
4. Bf4 {[%clk 0:04:48.9]} 4... dxc4 {[%clk 0:04:56.6]} 5. e3 {[%clk 0:04:48.1]}
5... b5 {[%clk 0:04:55.9]} 6. e4 {[%clk 0:04:39.3]} 6... b4 {[%clk 0:04:53.1]}
7. Na4 {[%clk 0:04:35.4]} 7... Nxe4 {[%clk 0:04:49.5]} 8. f3 {[%clk 0:04:30.1]}
8... Nf6 {[%clk 0:04:44.8]} 9. Bxc4 {[%clk 0:04:28]} 9... Bf5 {[%clk 0:04:39.6]}
10. Nc5 {[%clk 0:04:21.1]} 10... e6 {[%clk 0:04:34.7]} 11. Ne2 {[%clk
0:04:14.7]} 11... Be7 {[%clk 0:04:29.9]} 12. Ng1 {[%clk 0:04:14.6]} 12... O-O
{[%clk 0:04:27.1]} 13. Bg5 {[%clk 0:04:14.5]} 13... h6 {[%clk 0:04:25.8]} 14.
Bh4 {[%clk 0:04:10.7]} 14... Nbd7 {[%clk 0:04:18.1]} 15. Bxf6 {[%clk 0:04:04]}
15... Nxf6 {[%clk 0:04:14.2]} 16. b3 {[%clk 0:03:51.2]} 16... Bxc5 {[%clk
0:04:06.9]} 17. dxc5 {[%clk 0:03:42.2]} 17... Qxd1+ {[%clk 0:04:06.8]} 18. Rxd1
{[%clk 0:03:40.2]} 18... Rfd8 {[%clk 0:04:06.7]} 19. Rxd8+ {[%clk 0:03:37.4]}
19... Rxd8 {[%clk 0:04:01.4]} 20. Ne2 {[%clk 0:03:33.1]} 20... Bd3 {[%clk
0:04:00.3]} 21. Bxd3 {[%clk 0:03:29.6]} 21... Rxd3 {[%clk 0:04:00.2]} 22. O-O
{[%clk 0:03:27.2]} 22... Nd5 {[%clk 0:03:58.3]} 23. h4 {[%clk 0:03:14.4]} 23...
Rd2 {[%clk 0:03:56.1]} 24. Nc1 {[%clk 0:03:09.7]} 24... Ne3 {[%clk 0:03:48.1]}
25. Re1 {[%clk 0:03:07.4]} 25... Nxg2 {[%clk 0:03:44.3]} 26. Re2 {[%clk
0:03:01.6]} 26... Rxe2 {[%clk 0:03:42.7]} 27. Nxe2 {[%clk 0:03:00.2]} 27... Nxh4
{[%clk 0:03:42.6]} 28. Kf2 {[%clk 0:02:58.4]} 28... Nf5 {[%clk 0:03:40.4]} 29.
Nf4 {[%clk 0:02:50.8]} 29... g5 {[%clk 0:03:38.3]} 30. Nh5 {[%clk 0:02:48]}
30... Nd4 {[%clk 0:03:35.1]} 31. Nf6+ {[%clk 0:02:45.2]} 31... Kg7 {[%clk
0:03:32.6]} 32. Ne8+ {[%clk 0:02:14.7]} 32... Kg6 {[%clk 0:03:29.3]} 33. Nd6
{[%clk 0:02:12.1]} 33... f5 {[%clk 0:03:24.2]} 34. Nc8 {[%clk 0:02:06.7]} 34...
a5 {[%clk 0:03:23.2]} 0-1

[Event "Live Chess"]
[Site "Chess.com"]
[Date "2024.06.02"]
[Round "-"]
[White "Karasyov2"]
[Black "gobbles19"]
[Result "0-1"]
[WhiteElo "1314"]
[BlackElo "2245"]
[TimeControl "300"]
[EndTime "8:51:30 PDT"]
[Termination "gobbles19 won by resignation"]

1. e4 {[%clk 0:04:56.9]} 1... c5 {[%clk 0:04:58.1]} 2. c3 {[%clk 0:04:52.7]}
2... e6 {[%clk 0:04:57.2]} 3. d4 {[%clk 0:04:51.7]} 3... Nf6 {[%clk 0:04:56.8]}
4. e5 {[%clk 0:04:49.7]} 4... Nd5 {[%clk 0:04:56.6]} 5. Nf3 {[%clk 0:04:47.7]}
5... Nc6 {[%clk 0:04:56.2]} 6. Be2 {[%clk 0:04:39.6]} 6... Be7 {[%clk
0:04:55.6]} 7. O-O {[%clk 0:04:37.8]} 7... O-O {[%clk 0:04:55.3]} 8. Re1 {[%clk
0:04:31]} 8... d6 {[%clk 0:04:54]} 9. Qd3 {[%clk 0:04:16.4]} 9... cxd4 {[%clk
0:04:50.2]} 10. cxd4 {[%clk 0:04:12.5]} 10... Qc7 {[%clk 0:04:49.8]} 11. exd6
{[%clk 0:03:59.5]} 11... Bxd6 {[%clk 0:04:49.7]} 12. Be3 {[%clk 0:03:56.5]}
12... Ncb4 {[%clk 0:04:45.7]} 13. Qb3 {[%clk 0:03:50.2]} 13... Nxe3 {[%clk
0:04:42.7]} 14. fxe3 {[%clk 0:03:42.5]} 14... Qc2 {[%clk 0:04:39]} 15. Nbd2
{[%clk 0:03:29.2]} 15... Qxb3 {[%clk 0:04:36.7]} 16. Nxb3 {[%clk 0:03:25.9]}
16... Nc2 {[%clk 0:04:36.2]} 17. Rec1 {[%clk 0:03:21.6]} 17... Nxa1 {[%clk
0:04:35.5]} 18. Rxa1 {[%clk 0:03:21.3]} 18... Bd7 {[%clk 0:04:34.9]} 19. Rc1
{[%clk 0:03:20.5]} 19... Rac8 {[%clk 0:04:33.4]} 20. Rxc8 {[%clk 0:03:17.3]}
20... Rxc8 {[%clk 0:04:33.3]} 21. Kf2 {[%clk 0:03:11.8]} 21... Rc2 {[%clk
0:04:32.4]} 22. Na5 {[%clk 0:03:06.8]} 22... Bb5 {[%clk 0:04:31.1]} 23. Ng1
{[%clk 0:02:59.5]} 23... Bxh2 {[%clk 0:04:28.9]} 24. Kf3 {[%clk 0:02:53.1]}
24... Bxg1 {[%clk 0:04:28]} 25. Bxb5 {[%clk 0:02:50.4]} 25... Rxb2 {[%clk
0:04:27.5]} 0-1